Cogmind - Beta 12 @@@ ROGUE MODE // 2023.11.10 @ 11:16:52 Player: Ev Result: Self-destructed Performance ------------- Evolutions (2) 1000 Regions Visited (5) 1000 Robots Destroyed (72) 360 Value Destroyed (1892) 1892 Prototype IDs (8) 160 Alien Tech Used (0) 0 Bonus (105) 105 TOTAL SCORE: 4517 Bonus ------- High Alert Combat Kills 105 Cogmind --------- Core Integrity 214/550 Matter 239/300 Energy 158/160 System Corruption 6% Temperature Cool (15) Movement Flying (32) Location -8/Storage Parts ------- > --- POWER (1) -------- Light Nuclear Core > --- PROPULSION (3) --- Improved Flight Unit Improved Flight Unit Surge Thruster > --- UTILITY (5) ------ Small Storage Unit Weight Redist. System Improved Targeting Computer Hacking Suite > --- WEAPON (2) ------- Enhanced Autogun Enhanced Autogun > --- INVENTORY (8) ---- Particle Charger Light Armor Plating Hardlight Generator Enhanced Autogun Peak State ------------ > --- POWER ------------ Light Nuclear Core > --- PROPULSION ------- Improved Flight Unit Improved Flight Unit Surge Thruster > --- UTILITY ---------- Small Storage Unit Weight Redist. System Improved Targeting Computer Reaction Control System Drone Bay > --- WEAPON ----------- Enhanced Autogun Enhanced Autogun > --- INVENTORY -------- Surge Thruster Surge Thruster Light Armor Plating Hacking Suite Enhanced Autogun [Rating: 34] Favorites ----------- Power Light Ion Engine Engine Light Ion Engine Power Core Light Nuclear Core Propulsion Flight Unit Wheel Wheel Flight Unit Flight Unit Utility Improved Targeting Computer Device Weight Redist. System Storage Small Storage Unit Processor Improved Targeting Computer Hackware Hacking Suite Protection Light Armor Plating Weapon Improved Light Cannon Energy Gun EM Pulse Gun Ballistic Gun Enhanced Autogun Ballistic Cannon Improved Light Cannon Slashing Weapon Blade Saw Build | -11 -10 -9 -9 -8 -8 ------- Run | Jun Mat Mat Min Mat Sto Slots Evolved 4 | . . 2 . 2 . Power . | . . . . . . Propulsion 1 | . . . . 1 . Utility 3 | . . 2 . 1 . Weapon . | . . . . . . Parts Attached 80 | 6 18 18 . 26 12 Power 7 | 1 2 3 . 1 . Engine 6 | 1 2 3 . . . Core 1 | . . . . 1 . Reactor . | . . . . . . Propulsion 28 | 2 11 2 . 9 4 Treads . | . . . . . . Leg . | . . . . . . Wheel 2 | 2 . . . . . Hover . | . . . . . . Flight 26 | . 11 2 . 9 4 Utility 22 | 1 2 4 . 11 4 Device 8 | . . 2 . 3 3 Storage 4 | 1 . . . 3 . Processor 4 | . 2 1 . 1 . Hackware 2 | . . 1 . . 1 Protection 4 | . . . . 4 . Artifact . | . . . . . . Weapon 23 | 2 3 9 . 5 4 Energy Gun 7 | 1 3 3 . . . Energy Cannon . | . . . . . . Ballistic Gun 6 | 1 . 1 . . 4 Ballistic Cannon 9 | . . 5 . 4 . Launcher . | . . . . . . Special Weapon . | . . . . . . Impact Weapon . | . . . . . . Slashing Weapon 1 | . . . . 1 . Piercing Weapon . | . . . . . . Special Melee Weapon . | . . . . . . Unidentified Prototypes 3 | . . 1 . 1 1 Parts Lost 16 | . 1 3 . 9 3 Power 1 | . . 1 . . . Propulsion 6 | . 1 . . 3 2 Utility 5 | . . . . 4 1 Weapon 4 | . . 2 . 2 . Highest Loss Streak 6 | . 1 2 . 6 2 To Critical Strikes 2 | . 1 . . . 1 Average Slot Usage (%) 92 | . 91 97 100 84 98 Engine 9 | . 14 10 11 3 . Core 1 | . . . . 4 9 Wheel 3 | . 10 . . . . Flight 20 | . 16 22 22 23 26 Device 8 | . . 9 11 13 18 Storage 3 | . 5 . . 4 9 Processor 18 | . 16 24 22 15 10 Hackware 4 | . . 8 11 4 6 Energy Gun 7 | . 21 1 . . . Ballistic Gun 3 | . 5 . . . 17 Ballistic Cannon 9 | . . 19 22 8 . Naked Turns . | . . . . . . Heaviest Build 17 | 12 12 11 11 15 17 Greatest Support 21 | 20 20 14 14 21 19 Greatest Overweight (x) 2 | . 2 . . 1 . Average Overweight (x) . | . . . . . . Largest Inventory Capacity 8 | 8 8 5 5 8 8 Average Capacity 5 | 6 6 5 5 6 8 Most Carried 8 | 3 5 5 5 8 8 Average Carried 4 | 1 3 4 5 3 5 Final Capacity 8 | 8 5 5 5 8 8 Final Carried 8 | 2 5 5 5 8 4 Class Distribution -------------------- 79% | Mutant 11% | Scavenger-Sprinter 8% | Sprinter Dominant Class ---------------- Mutant | -10/Materials Mutant | -9/Materials Mutant | -9/Mines Scavenger-Sprinter | -8/Materials Sprinter | -8/Storage Resources | -11 -10 -9 -9 -8 -8 ----------- Run | Jun Mat Mat Min Mat Sto Matter Collected 1824 | 227 187 592 . 539 279 Remotely . | . . . . . . Salvage Created 2295 | . 456 773 . 840 226 Parts 155 | . 23 62 . 58 12 Haulers Intercepted 12 | . 2 6 . 4 . Recyclers Shooed . | . . . . . . Parts Field Recycled . | . . . . . . Retrieved Matter . | . . . . . . Parts Self-Destructed . | . . . . . . Prevented . | . . . . . . Kills | -11 -10 -9 -9 -8 -8 ------- Run | Jun Mat Mat Min Mat Sto Combat Hostiles Destroyed 44 | . 9 15 . 16 4 Melee 4 | . . . . 4 . Guns 13 | . 9 . . . 4 Cannons 26 | . . 14 . 12 . AOE 1 | . . 1 . . . Classes Destroyed 13 | . 5 4 . 3 1 Worker 1 | . . 1 . . . Builder 1 | . . . . 1 . Hauler 12 | . 2 6 . 4 . Operator 5 | . 2 1 . 1 1 Watcher 9 | . 3 3 . 3 . Swarmer 9 | . 6 3 . . . Cutter 3 | . . . . 3 . Grunt 18 | . 3 5 . 7 3 Brawler 1 | . . 1 . . . Duelist 1 | . . 1 . . . Sentry 10 | . . 5 . 5 . Hunter 1 | . . . . . 1 Heavy 1 | . . . . 1 . Best Kill Streak 8 | . 3 4 . 8 2 Combat Bots Only 6 | . 3 3 . 6 2 Max Kills in Single Turn 2 | . 2 2 . 1 1 Gunslinging 1 | . 1 . . . . Exploded 1 | . . 1 . . . Melee 1 | . . . . 1 . Uniques/NPCs Destroyed . | . . . . . . Combat | -11 -10 -9 -9 -8 -8 -------- Run | Jun Mat Mat Min Mat Sto Damage Taken 2153 | . 416 373 . 1018 346 Core 567 | . 150 81 . 283 53 Absorbed by Shields . | . . . . . . Regen/Repaired (Parts) 67 | . 27 40 . . . Core Remaining (%) 73 | 100 40 . 79 . . Volleys Fired 178 | . 47 58 . 44 29 Largest 2 | . 2 2 . 2 2 Hottest 85 | . 85 85 . 78 50 Shots Fired 330 | . 92 109 . 72 57 Gun 163 | . 92 14 . . 57 Cannon 167 | . . 95 . 72 . Launcher . | . . . . . . Special . | . . . . . . Kinetic 250 | . 26 95 . 72 57 Thermal 24 | . 24 . . . . Explosive . | . . . . . . Electromagnetic 56 | . 42 14 . . . Robot Hit Streak 22 | . 11 9 . 22 12 Robot Miss Streak 4 | . 3 4 . 3 2 Penetration Max . | . . . . . . Secondary Targets 3 | . 3 . . . . Max Gunslinging Chain 1 | . 1 . . . . Shots Hit Robots 250 | . 63 66 . 79 42 Core Hits 105 | . 23 27 . 42 13 Critical Kills . | . . . . . . Critical Parts Destroyed . | . . . . . . Critical Strikes 15 | . 1 6 . 8 . Blast 8 | . . 5 . 3 . Corrupt 2 | . 1 1 . . . Sever 5 | . . . . 5 . Melee Attacks 32 | . . . . 30 2 Impact . | . . . . . . Slashing 32 | . . . . 30 2 Piercing . | . . . . . . Sneak Attacks 3 | . . . . 3 . Combat Hostiles . | . . . . . . Follow-up Attacks . | . . . . . . Damage Inflicted 4729 | . 875 1377 . 1789 688 Guns 1548 | . 802 86 . . 660 Cannons 2573 | . . 1261 . 1312 . Explosions 103 | . 73 30 . . . Melee 505 | . . . . 477 28 Ramming . | . . . . . . Kinetic 3382 | . 149 1261 . 1312 660 Thermal 237 | . 207 30 . . . Explosive . | . . . . . . Electromagnetic 605 | . 519 86 . . . Impact . | . . . . . . Slashing 505 | . . . . 477 28 Piercing . | . . . . . . Highest Corruption 6 | . . . . 6 6 Average Corruption 6 | . . . . 6 6 Corruption Purged . | . . . . . . Corruption Blocked . | . . . . . . Effects 16 | . . . . 9 7 Message Errors 4 | . . . . 2 2 Matter Fused 5 | . . . . 4 1 Energy Discharges 3 | . . . . 2 1 Data Loss (minor) 3 | . . . . 1 2 Weapon Failures 1 | . . . . . 1 Overload Shots . | . . . . . . Overflow Damage 30 | . . 29 . 1 . Projectiles 30 | . . 29 . 1 . Explosions . | . . . . . . Melee . | . . . . . . Knockbacks 21 | . . 14 . 7 . Impact . | . . . . . . Kinetic 20 | . . 13 . 7 . Secondary 1 | . . 1 . . . Self-Inflicted Damage 71 | . 71 . . . . Shots 2 | . 2 . . . . Rammed . | . . . . . . Targets Rammed . | . . . . . . Kicked . | . . . . . . Crushed . | . . . . . . Highest Temperature 180 | . 132 123 . 118 180 Average Temperature 40 | . 44 29 . 32 73 Received Heat Transfer 438 | . 69 81 . 153 135 Siege Activations . | . . . . . . Robots Corrupted 1 | . 1 . . . . Combat Hostiles . | . . . . . . Parts Fried 5 | . 4 1 . . . Impact Corruptions . | . . . . . . Robots Melted . | . . . . . . Combat Hostiles . | . . . . . . Parts Melted 1 | . 1 . . . . Heat Transferred 400 | . 400 . . . . Parts Sabotaged . | . . . . . . Parts Stolen . | . . . . . . Parts Stripped . | . . . . . . Power Chain Reactions 3 | . 2 1 . . . Missiles Intercepted . | . . . . . . Alert | -11 -10 -9 -9 -8 -8 ------- Run | Jun Mat Mat Min Mat Sto Peak Influence 575 | . 233 565 184 575 373 Initial 213 | . . 89 184 71 213 Average 276 | . 120 380 184 354 286 Maximum Alert Level 2 | . 1 2 . 2 1 Low Security (%) 34 | 100 77 12 100 15 . Level 1 36 | . 22 34 . 40 100 Level 2 28 | . . 52 . 44 . Level 3 . | . . . . . . Level 4 . | . . . . . . Level 5 . | . . . . . . High Security . | . . . . . . Max Security . | . . . . . . Squads Dispatched 8 | . 1 4 . 2 1 Investigation 2 | . . 2 . . . Extermination . | . . . . . . Reinforcement 4 | . 1 . . 2 1 Assault 2 | . . 2 . . . Garrison . | . . . . . . Intercept . | . . . . . . Searches Triggered . | . . . . . . Construction Impeded . | . . . . . . Haulers Reinforced . | . . . . . . Active Scanning Responses . | . . . . . . Cargo Convoy Interrupts . | . . . . . . Stealth | -11 -10 -9 -9 -8 -8 --------- Run | Jun Mat Mat Min Mat Sto Distress Signals 3 | . . 2 . 1 . Communications Jammed . | . . . . . . Distress Signals . | . . . . . . Times Spotted 82 | . 14 29 . 30 9 Peak Tracking Total 6 | . 4 6 . 5 3 Tactical Retreats 5 | . . 3 . 1 1 Traps | -11 -10 -9 -9 -8 -8 ------- Run | Jun Mat Mat Min Mat Sto Traps Triggered 1 | . . 1 . . . Indirectly . | . . . . . . Trap Hack Attempts . | . . . . . . Triggered . | . . . . . . Disarmed . | . . . . . . Reprogrammed . | . . . . . . Reused . | . . . . . . Traps Extracted . | . . . . . . Installed . | . . . . . . Triggered . | . . . . . . Machines | -11 -10 -9 -9 -8 -8 ---------- Run | Jun Mat Mat Min Mat Sto Machines Disabled 6 | . 3 3 . . . Max in Single Turn 2 | . 2 1 . . . Machines Repaired . | . . . . . . Machines Sabotaged . | . . . . . . Overloaded Fab Kills . | . . . . . . Hacking | -11 -10 -9 -9 -8 -8 --------- Run | Jun Mat Mat Min Mat Sto Machines Accessed 19 | . 9 7 . . 3 Terminals 13 | . 6 5 . . 2 Fabricators . | . . . . . . Repair Stations 4 | . 1 2 . . 1 Recycling Units 2 | . 2 . . . . Scanalyzers . | . . . . . . Garrison Access . | . . . . . . Total Hacks 43 | . 23 14 . . 6 Successful 27 | . 15 10 . . 2 Failed 16 | . 8 4 . . 4 Catastrophic 3 | . 2 1 . . . Database Lockouts . | . . . . . . Manual . | . . . . . . Terminals 23 | . 13 7 . . 3 Fabricators . | . . . . . . Repair Stations 16 | . 6 7 . . 3 Recycling Units 4 | . 4 . . . . Scanalyzers . | . . . . . . Garrison Access . | . . . . . . Terminal Hacks 17 | . 10 5 . . 2 Prototype ID Bank 3 | . 2 1 . . . Open Door 1 | . . . . . 1 Branch Access Points 1 | . 1 . . . . Emergency Access Points 1 | . . 1 . . . Alert Level 3 | . 2 1 . . . Locate Traps 2 | . 1 1 . . . Security Status 1 | . 1 . . . . Hauler Manifests 1 | . 1 . . . . Zone Layout 4 | . 2 1 . . 1 Fabricator Hacks . | . . . . . . Repair Station Hacks 10 | . 5 5 . . . Scan Component 7 | . 3 4 . . . Repair 3 | . 2 1 . . . Recycling Unit Hacks . | . . . . . . Scanalyzer . | . . . . . . Garrison Access Hacks . | . . . . . . Unauthorized Hacks . | . . . . . . Terminals . | . . . . . . Fabricators . | . . . . . . Repair Stations . | . . . . . . Recycling Units . | . . . . . . Scanalyzers . | . . . . . . Garrison Access . | . . . . . . Data Cores Recovered 1 | . . . . 1 . Used . | . . . . . . Hacking Detections 12 | . 6 4 . . 2 Full Trace Events 2 | . . 2 . . . Feedback Events . | . . . . . . Feedback Blocked . | . . . . . . Robot Schematics Acquired . | . . . . . . Robots Built . | . . . . . . Authchips . | . . . . . . Time . | . . . . . . Total Robot Build Rating . | . . . . . . Part Schematics Acquired . | . . . . . . Parts Built . | . . . . . . Authchips . | . . . . . . Time . | . . . . . . Total Part Build Rating . | . . . . . . Parts Repaired 3 | . 2 1 . . . Time 102 | . 70 32 . . . Parts Recycled . | . . . . . . Recycled Matter . | . . . . . . Retrieved Matter . | . . . . . . Retrieved Components . | . . . . . . Parts Scanalyzed . | . . . . . . Part Schematics Acquired . | . . . . . . Parts Damaged . | . . . . . . Bothacking | -11 -10 -9 -9 -8 -8 ------------ Run | Jun Mat Mat Min Mat Sto Used RIF Installer . | . . . . . . Robots Hacked . | . . . . . . Non-combat . | . . . . . . Combat . | . . . . . . Robot Hacks Applied . | . . . . . . Relay Couplers Released . | . . . . . . Fabnet Peak Effective % . | . . . . . . Robots Rewired . | . . . . . . Allies Hacked . | . . . . . . Hacks Repelled . | . . . . . . Allies | -11 -10 -9 -9 -8 -8 -------- Run | Jun Mat Mat Min Mat Sto Total Allies . | . . . . . . Largest Group . | . . . . . . Highest-Rated Group . | . . . . . . Highest-Rated Ally . | . . . . . . Total Orders . | . . . . . . Ally Attacks . | . . . . . . Total Damage . | . . . . . . Kills . | . . . . . . Allies Corrupted . | . . . . . . Allies Melted . | . . . . . . Intel | -11 -10 -9 -9 -8 -8 ------- Run | Jun Mat Mat Min Mat Sto Robot Analysis Total . | . . . . . . Derelict Logs Recovered . | . . . . . . Drone Launches . | . . . . . . Drone Recoveries . | . . . . . . Exploration | -11 -10 -9 -9 -8 -8 ------------- Run | Jun Mat Mat Min Mat Sto Turns Passed 2364 | 46 740 864 25 487 202 Spaces Moved 2750 | 41 834 1232 43 437 163 Core 3 | 3 . . . . . Treads . | . . . . . . Legs . | . . . . . . Wheels 223 | 38 185 . . . . Hover . | . . . . . . Flight 2524 | . 649 1232 43 437 163 Fastest Speed 29 | 50 37 37 37 29 29 Average Speed 39 | 77 46 37 37 32 31 Slowest Speed 205 | 80 205 37 37 120 32 Overloaded Moves . | . . . . . . Propulsion Burnouts . | . . . . . . Robots Hopped 21 | . 7 5 1 8 . Cave-ins Triggered 1 | . . . . 1 . Exploration Rate (%) 42 | 3 99 73 13 40 25 Regions Visited 5 Branch Regions 2 Pre-discovered Areas 1 | . . . 1 . . Known Exits Taken . | . . . . . . Unknown Exits Taken 5 | 1 1 1 1 1 . Scrap Searched . | . . . . . . Spaces Dug . | . . . . . . Terrain Destroyed 24 | . 14 7 . 3 . Melee . | . . . . . . Projectile 7 | . . 4 . 3 . AOE 17 | . 14 3 . . . Terrain Rammed . | . . . . . . Walls Destroyed . | . . . . . . Machines Disabled . | . . . . . . Actions | -11 -10 -9 -9 -8 -8 --------- Run | Jun Mat Mat Min Mat Sto Total 3633 | 54 1087 1527 50 640 275 Wait 511 | . 167 197 9 78 60 Move 2705 | 40 819 1221 40 422 163 Hop 19 | . 7 5 1 6 . Pick Up 69 | 8 17 16 . 24 4 Fast Attach 6 | . 2 3 . 1 . Attach 43 | 6 5 9 . 16 7 Detach 1 | . . . . . 1 Swap 31 | . 11 6 . 9 5 Drop 38 | . 12 12 . 10 4 Fire 178 | . 47 58 . 44 29 Melee 32 | . . . . 30 2 Ram . | . . . . . . Kick . | . . . . . . Crush . | . . . . . . Escape Stasis . | . . . . . . Rewire . | . . . . . . Trap . | . . . . . . Miscellaneous . | . . . . . . Route ------- -11/Junkyard -10/Materials (discovered 4 exits: *Mat x3 / *Min) -9/Materials (discovered 4 exits: [*Mat x2] / [*Min x2]) -9/Mines -8/Materials (discovered 2 exits: [*Fac] / *Sto) -8/Storage History --------- Turn | Location | Event 10 | -11/Junkyard | Discovered new exit (range 15) 47 | -11/Junkyard | Entered Materials 314 | -10/Materials | Core integrity fell below 50% 316 | -10/Materials | Build established: Mutant 367 | -10/Materials | Discovered new exit (range 6) 450 | -10/Materials | Discovered new exit (range 16) 523 | -10/Materials | Identified exit to Mines 659 | -10/Materials | Discovered new exit (range 6) 712 | -10/Materials | Repaired Broken Hvy. EM Pulse Gun 740 | -10/Materials | Repaired Flight Unit 787 | -10/Materials | Entered another Materials area 787 | -9/Materials | Evolved 2 slots: Utility x2 1173 | -9/Materials | Discovered new exit (range 5) 1248 | -9/Materials | Discovered new exit (range 8) 1543 | -9/Materials | Repaired Imp. Light Cannon 1587 | -9/Materials | First assault squad dispatched 1642 | -9/Materials | Discovered new exit (range 15) 1642 | -9/Materials | Discovered new exit (range 5) 1651 | -9/Materials | Entered Mines 1652 | -9/Mines | Learned location of Storage (-8) 1674 | -9/Mines | Discovered new exit (range 6) 1676 | -9/Mines | Entered Materials 1676 | -8/Materials | Evolved 2 slots: Propulsion x1, Utility x1 1896 | -8/Materials | Crushed by falling debris 1927 | -8/Materials | Lost 6 parts (1n3u2w) 1998 | -8/Materials | Discovered new exit (range 15) 2066 | -8/Materials | Core integrity fell below 50% 2137 | -8/Materials | Discovered new exit (range 13) 2163 | -8/Materials | Entered Storage 2365 | -8/Storage | Self-destructed Last Messages --------------- 02321_ K-01 Serf collects debris. 02322_ Slug penetrates Wall. 02323_ System corrupted: Component data lost. 02323_ System corrupted: Enh. Autogun jammed. 02324_ K-01 Serf collects debris. 02325_ Penetrated by Slug. 02328_ Critical hit (Destroy). 02328_ Surge Thruster destroyed. 02331_ Slug penetrates Wall. 02334_ Penetrated by Slug. 02335_ H-55 Commando destroyed. 02338_ Acquired 44 matter. 02338_ Acquired 60 matter. 02339_ Acquired 53 matter. 02339_ Acquired 60 matter. 02343_ Connecting with Repair Station... 02355_ Connecting with Door Terminal... 02360_ System corrupted: Matter fused (-7). 02365_ Reaction Control System destroyed. 02365_ A-02 Transporter destroyed. Map ----- +----------------------------------------------------+ | ????????????????????????????????????????? | | ????????????????????????????????????????? | | ????????????????????????????????????????? | | ????????????????????????????????????????? | | ????????????????????????????????????????? | | ????????????????????????????????????????? | | ????????????????????????????????????????? | | ????????????????????????????????????????? | | ????????????????????????????????????????? | | ????????????????????????????????????????? | | ????????????????????????????????????????? | | ????????????????????????????????????????? | | ????????????????????????????????????????? | | ???????????""""?????????????????????????? | | ??????????## #?????????????????????????? | | ??????????#T #?????????????????????????? | | ???######### ##########????????????????? | | ?# # # ???????????????? | | ?# """" + # """ """???????????????? | | ?# "" " # # """ """ ??????????????? | | ?# """ " # + """ """ #????????????? | | ?# " """ # # #????????????? | | ?# " "" # # != #????????????? | | ?# """" # ##+############???????????? | | ?# # a!%!! ! ????????? | | ?########### !@! Y]????????? | | ??##########+###a###########????????????? | | ??# # #????????????????? | | ??# """"" # g #????????????????? | | ??# """"" " "" # #????????????????? | | ??# """"" "R"" # #????????????????? | | ??# """" # #????????????????? | | #########+###### #????????????????? | | # " " + #???# #????????????????? | | # T # #???# #????????????????? | | # # #???# #????????????????? | | # ]!! # #???# #????????????????? | | # ]!= " ! #???# #????????????????? | | # ]!!=# ! #???#+#####+#????????????????? | | # # #???# #????? ???????????????? | | # # = ##### ##### ???????? | | # # = ???????? | | # """ # ###############/##???????????? | | # """ # ########???????? ????????????? | | # """ # + #!!!!#?????????????????????? | | # # # ! #?????????????????????? | | ####T### # #! !!#?????????????????????? | | ???###?# #T######?????????????????????? | | ???????# ########?????????????????????? | | ???????# #????????????????????????????? | +----------------------------------------------------+ Best States ------------- Heat Dissipation 31 Energy Generation 14 Energy Capacity 250 Matter Stores 300 Matter Capacity 300 Sight Range 16 Terrain Scan Density 10 Additional Mass Support 6 Armor Coverage 150 Evasion (%) 72 Targeting Accuracy 12 Melee Accuracy 5 Offensive Hacking 10 Item Schematics ----------------- None Robot Schematics ------------------ None Fabricated ------------ Nothing Alien Tech Used ----------------- None Achievements -------------- Deadly Force Significant Disruption Unlikely Earthworm Challenges ------------ None Game ------ Seed TerrainMeleeInterpreter Manual? 0 Play Time 00:50:58 Cumulative 17.1 hours Start 2023.11.09 @ 23:43:03 End 2023.11.10 @ 11:16:52 Sessions 2 Manual Loads 0 Difficulty Rogue Special Mode None Game No. 40 Rogue 40 Adventurer 0 Explorer 0 Win Type - Total 0 Types 0/0/0/0/0/0/0/0/0 Lore% 8 Gallery% 19 Achievement% 14 Wizard Run 0 Options --------- ASCII 0 Keyboard 0 Movement Mouse Keybinds 0 Fullscreen 1 Font 24/Smallcaps Map View 76x50 Tactical HUD 1 Map Filters NONE Filters NONE Steam 1 RUN: bc19beb1-b9c9-4099-9b32-1089ea0f28af